Cogmind - Beta 11 @@@ ROGUE MODE // 2022.04.10 @ 02:27:41 Player: Jezoensis Result: Self-destructed Performance ------------- Evolutions (2) 1000 Regions Visited (7) 1400 Robots Destroyed (43) 215 Value Destroyed (674) 674 Prototype IDs (26) 520 Alien Tech Used (0) 0 Bonus (300) 300 TOTAL SCORE: 4109 Bonus ------- Aligned with FarCom 300 Cogmind --------- Core Integrity 550/550 Matter 281/300 Energy 100/100 System Corruption 0% Temperature Cool (0) Movement Walking (120) Location -8/Materials Parts ------- > --- POWER (1) -------- (None) > --- PROPULSION (4) --- Aluminum Leg > --- UTILITY (4) ------ Visual Processing Unit Improved Terrain Scanner Terrain Scan Processor > --- WEAPON (2) ------- Improved Medium Laser Improved Assault Rifle > --- INVENTORY (5) ---- Cooled Ion Engine Medium Storage Unit Large Storage Unit Guided Plasma Cannon Missile Launcher Peak State ------------ > --- POWER ------------ Light Nuclear Core > --- PROPULSION ------- Aluminum Leg Aluminum Leg Aluminum Leg > --- UTILITY ---------- Medium Storage Unit Improved Terrain Scanner Terrain Scan Processor > --- WEAPON ----------- Improved Assault Rifle Improved Assault Rifle > --- INVENTORY -------- Ion Engine Aluminum Leg Cooling System Large Storage Unit Visual Processing Unit ECM Suite Medium Laser Improved Assault Rifle Improved Assault Rifle Mining Laser [Rating: 19] Favorites ----------- Power Cooled Ion Engine Engine Cooled Ion Engine Power Core Light Nuclear Core Propulsion Aluminum Leg Leg Aluminum Leg Utility Improved Terrain Scanner Device Improved Terrain Scanner Storage Medium Storage Unit Processor Terrain Scan Processor Protection Light Armor Plating Weapon Improved Assault Rifle Energy Gun Improved Medium Laser Ballistic Gun Improved Assault Rifle Special Weapon Mining Laser Build | -11 -10 -10 -9 -9 -9 -8 -8 ------- Run | Scr Mat Min Mat Min Exi Min Mat Slots Evolved 4 | . . . 2 . . . 2 Power . | . . . . . . . . Propulsion 2 | . . . 1 . . . 1 Utility 2 | . . . 1 . . . 1 Weapon . | . . . . . . . . Parts Attached 55 | 7 7 . 32 7 1 . 1 Power 4 | 1 . . 2 1 . . . Engine 3 | 1 . . 1 1 . . . Core 1 | . . . 1 . . . . Reactor . | . . . . . . . . Propulsion 7 | 2 . . 4 1 . . . Treads . | . . . . . . . . Leg 7 | 2 . . 4 1 . . . Wheel . | . . . . . . . . Hover . | . . . . . . . . Flight . | . . . . . . . . Utility 30 | 2 5 . 19 3 1 . . Device 23 | 1 3 . 16 3 . . . Storage 3 | 1 2 . . . . . . Processor 2 | . . . 1 . 1 . . Hackware . | . . . . . . . . Protection 2 | . . . 2 . . . . Artifact . | . . . . . . . . Weapon 14 | 2 2 . 7 2 . . 1 Energy Gun 5 | 1 1 . 2 1 . . . Energy Cannon . | . . . . . . . . Ballistic Gun 7 | 1 . . 4 1 . . 1 Ballistic Cannon . | . . . . . . . . Launcher . | . . . . . . . . Special Weapon 2 | . 1 . 1 . . . . Impact Weapon . | . . . . . . . . Slashing Weapon . | . . . . . . . . Piercing Weapon . | . . . . . . . . Special Melee Weapon . | . . . . . . . . Unidentified Prototypes 3 | . . . 3 . . . . Parts Lost 5 | . . . 2 2 . . 1 Power . | . . . . . . . . Propulsion 5 | . . . 2 2 . . 1 Utility . | . . . . . . . . Weapon . | . . . . . . . . Highest Loss Streak 2 | . . . 1 2 . . 1 To Critical Strikes . | . . . . . . . . Average Slot Usage (%) 93 | . 98 100 97 95 88 88 61 Engine 11 | . 14 14 9 11 11 11 4 Leg 26 | . 28 28 30 28 22 22 12 Device 12 | . 12 14 10 14 17 11 9 Storage 8 | . 14 14 11 7 . . . Processor 8 | . . . 11 11 15 22 18 Energy Gun 10 | . 13 14 7 11 11 11 9 Ballistic Gun 12 | . 14 14 14 10 11 11 9 Naked Turns . | . . . . . . . . Heaviest Build 26 | 15 20 20 26 25 17 15 15 Greatest Support 30 | 20 20 20 30 30 20 20 20 Greatest Overweight (x) 1 | . . . 1 . . . . Average Overweight (x) . | . . . . . . . . Largest Inventory Capacity 10 | 8 10 10 10 10 5 5 5 Average Capacity 8 | 7 9 10 10 8 5 5 5 Most Carried 10 | 5 10 10 10 10 5 5 5 Average Carried 7 | 2 9 10 9 8 4 5 4 Final Capacity 10 | 8 10 10 10 5 5 5 5 Final Carried 10 | 4 10 10 9 5 5 5 5 Class Distribution -------------------- 53% | Mutant 32% | Scavenger-Mutant 14% | Scavenger-Skirmisher Dominant Class ---------------- Mutant | -10/Materials Mutant | -10/Mines Mutant | -9/Materials Scavenger-Mutant | -9/Mines Scavenger-Mutant | -9/Exiles Scavenger-Skirmisher | -8/Mines Scavenger-Skirmisher | -8/Materials Resources | -11 -10 -10 -9 -9 -9 -8 -8 ----------- Run | Scr Mat Min Mat Min Exi Min Mat Matter Collected 1075 | 306 184 . 460 77 . . 48 Remotely . | . . . . . . . . Salvage Created 1290 | 111 473 . 603 55 . . 48 Parts 91 | 10 41 . 40 . . . . Haulers Intercepted 5 | . 2 . 3 . . . . Recyclers Shooed 1 | . . . 1 . . . . Parts Field Recycled . | . . . . . . . . Retrieved Matter . | . . . . . . . . Parts Self-Destructed . | . . . . . . . . Prevented . | . . . . . . . . Kills | -11 -10 -10 -9 -9 -9 -8 -8 ------- Run | Scr Mat Min Mat Min Exi Min Mat Combat Hostiles Destroyed 32 | . 10 . 16 5 . . 1 Guns 32 | . 10 . 16 5 . . 1 Classes Destroyed 11 | 2 5 . 1 2 . . 1 Builder 1 | . 1 . . . . . . Tunneler 4 | 3 1 . . . . . . Hauler 5 | . 2 . 3 . . . . Recycler 2 | 1 1 . . . . . . Watcher 3 | . 3 . . . . . . Swarmer 19 | . 9 . 10 . . . . Grunt 5 | . 1 . 4 . . . . Sentry 2 | . . . 2 . . . . Demolisher 1 | . . . . 1 . . . Hunter 1 | . . . . . . . 1 Assembled 4 | . . . . 4 . . . Best Kill Streak 7 | 2 6 . 7 2 . . 1 Combat Bots Only 7 | . 6 . 7 2 . . 1 Max Kills in Single Turn 1 | 1 1 . 1 1 . . 1 Gunslinging . | . . . . . . . . Exploded . | . . . . . . . . Melee . | . . . . . . . . Uniques/NPCs Destroyed . | . . . . . . . . Combat | -11 -10 -10 -9 -9 -9 -8 -8 -------- Run | Scr Mat Min Mat Min Exi Min Mat Damage Taken 1491 | . 293 . 492 538 . . 168 Core 211 | . 50 . 56 105 . . . Absorbed by Shields 76 | . . . . 76 . . . Core Remaining (%) 79 | 100 . 80 . . . 59 . Volleys Fired 113 | 12 39 . 40 15 . . 7 Largest 2 | 2 2 . 2 2 . . 2 Hottest 100 | 70 100 . 100 79 . . 79 Shots Fired 224 | 24 77 . 79 30 . . 14 Gun 222 | 24 76 . 78 30 . . 14 Cannon . | . . . . . . . . Launcher . | . . . . . . . . Special 2 | . 1 . 1 . . . . Kinetic 124 | 12 38 . 52 15 . . 7 Thermal 100 | 12 39 . 27 15 . . 7 Explosive . | . . . . . . . . Electromagnetic . | . . . . . . . . Robot Hit Streak 23 | 8 9 . 23 10 . . 4 Robot Miss Streak 4 | 2 4 . 3 3 . . 2 Penetration Max . | . . . . . . . . Secondary Targets 4 | . 3 . . 1 . . . Max Gunslinging Chain 1 | . 1 . . 1 . . . Shots Hit Robots 139 | 16 46 . 51 18 . . 8 Core Hits 62 | 5 22 . 23 10 . . 2 Critical Kills 1 | . 1 . . . . . . Critical Parts Destroyed . | . . . . . . . . Critical Strikes 7 | 2 2 . 1 2 . . . Burn 6 | 2 1 . 1 2 . . . Destroy 1 | . 1 . . . . . . Melee Attacks . | . . . . . . . . Impact . | . . . . . . . . Slashing . | . . . . . . . . Piercing . | . . . . . . . . Sneak Attacks . | . . . . . . . . Combat Hostiles . | . . . . . . . . Follow-up Attacks . | . . . . . . . . Damage Inflicted 2063 | 217 627 . 802 308 . 1 108 Guns 2062 | 217 627 . 802 308 . . 108 Cannons . | . . . . . . . . Explosions . | . . . . . . . . Melee . | . . . . . . . . Ramming 1 | . . . . . . 1 . Kinetic 1152 | 80 318 . 543 155 . . 56 Thermal 910 | 137 309 . 259 153 . . 52 Explosive . | . . . . . . . . Electromagnetic . | . . . . . . . . Impact . | . . . . . . . . Slashing . | . . . . . . . . Piercing . | . . . . . . . . Highest Corruption . | . . . . . . . . Average Corruption . | . . . . . . . . Corruption Purged . | . . . . . . . . Corruption Blocked . | . . . . . . . . Overload Shots . | . . . . . . . . Overflow Damage . | . . . . . . . . Projectiles . | . . . . . . . . Explosions . | . . . . . . . . Melee . | . . . . . . . . Knockbacks . | . . . . . . . . Impact . | . . . . . . . . Kinetic . | . . . . . . . . Secondary . | . . . . . . . . Self-Inflicted Damage . | . . . . . . . . Shots . | . . . . . . . . Rammed . | . . . . . . . . Targets Rammed 1 | . . . . . . 1 . Kicked 1 | . . . . . . 1 . Crushed . | . . . . . . . . Highest Temperature 388 | 27 41 . 388 26 . . . Average Temperature 28 | 14 18 . 93 8 . . . Received Heat Transfer 179 | . 24 . 135 20 . . . Siege Activations . | . . . . . . . . Robots Corrupted . | . . . . . . . . Combat Hostiles . | . . . . . . . . Parts Fried . | . . . . . . . . Impact Corruptions . | . . . . . . . . Robots Melted . | . . . . . . . . Combat Hostiles . | . . . . . . . . Parts Melted 2 | 1 1 . . . . . . Heat Transferred 2775 | 555 962 . 666 481 . . 111 Parts Sabotaged . | . . . . . . . . Parts Stolen . | . . . . . . . . Parts Stripped . | . . . . . . . . Power Chain Reactions . | . . . . . . . . Missiles Intercepted . | . . . . . . . . Alert | -11 -10 -10 -9 -9 -9 -8 -8 ------- Run | Scr Mat Min Mat Min Exi Min Mat Peak Influence 358 | 20 336 . 358 154 . . 50 Initial 139 | . 13 . . 139 . . . Average 118 | 9 183 . 108 141 . . 20 Maximum Alert Level 1 | . 1 . 1 . . . . Low Security (%) 81 | 100 52 100 84 100 . 100 100 Level 1 18 | . 47 . 15 . . . . Level 2 . | . . . . . . . . Level 3 . | . . . . . . . . Level 4 . | . . . . . . . . Level 5 . | . . . . . . . . High Security . | . . . . . . . . Max Security . | . . . . . . . . Squads Dispatched 1 | . . . 1 . . . . Investigation . | . . . . . . . . Extermination . | . . . . . . . . Reinforcement 1 | . . . 1 . . . . Assault . | . . . . . . . . Garrison . | . . . . . . . . Intercept . | . . . . . . . . Searches Triggered . | . . . . . . . . Construction Impeded . | . . . . . . . . Haulers Reinforced . | . . . . . . . . Active Scanning Responses . | . . . . . . . . Cargo Convoy Interrupts . | . . . . . . . . Stealth | -11 -10 -10 -9 -9 -9 -8 -8 --------- Run | Scr Mat Min Mat Min Exi Min Mat Distress Signals 4 | . 2 . . . . . 2 Communications Jammed . | . . . . . . . . Distress Signals . | . . . . . . . . Times Spotted 52 | . 15 . 23 10 . . 4 Peak Tracking Total 7 | . 5 . 7 3 . . 3 Tactical Retreats 5 | . . . 2 3 . . . Traps | -11 -10 -10 -9 -9 -9 -8 -8 ------- Run | Scr Mat Min Mat Min Exi Min Mat Traps Triggered . | . . . . . . . . Indirectly . | . . . . . . . . Trap Hack Attempts . | . . . . . . . . Triggered . | . . . . . . . . Disarmed . | . . . . . . . . Reprogrammed . | . . . . . . . . Reused . | . . . . . . . . Traps Extracted . | . . . . . . . . Installed . | . . . . . . . . Triggered . | . . . . . . . . Machines | -11 -10 -10 -9 -9 -9 -8 -8 ---------- Run | Scr Mat Min Mat Min Exi Min Mat Machines Disabled . | . . . . . . . . Max in Single Turn . | . . . . . . . . Machines Sabotaged . | . . . . . . . . Garrisons Compromised . | . . . . . . . . Overloaded Fab Kills . | . . . . . . . . Hacking | -11 -10 -10 -9 -9 -9 -8 -8 --------- Run | Scr Mat Min Mat Min Exi Min Mat Machines Accessed 10 | . 6 . 3 . 1 . . Terminals 7 | . 5 . 2 . . . . Fabricators . | . . . . . . . . Repair Stations . | . . . . . . . . Recycling Units 2 | . 1 . 1 . . . . Scanalyzers . | . . . . . . . . Garrison Access . | . . . . . . . . Total Hacks 34 | . 22 . 11 . 1 . . Successful 20 | . 14 . 5 . 1 . . Failed 13 | . 7 . 6 . . . . Catastrophic . | . . . . . . . . Database Lockouts 1 | . 1 . . . . . . Manual 28 | . 16 . 11 . 1 . . Terminals 30 | . 21 . 9 . . . . Fabricators . | . . . . . . . . Repair Stations . | . . . . . . . . Recycling Units 3 | . 1 . 2 . . . . Scanalyzers . | . . . . . . . . Garrison Access . | . . . . . . . . Terminal Hacks 11 | . 9 . 1 . 1 . . Robot Analysis 4 | . 4 . . . . . . Terminal Index 2 | . 1 . 1 . . . . Unreport Threat 2 | . 2 . . . . . . Locate Traps 2 | . 2 . . . . . . EX-Prototype ID Bank 1 | . . . . . 1 . . Fabricator Hacks . | . . . . . . . . Repair Station Hacks . | . . . . . . . . Recycling Unit Hacks . | . . . . . . . . Scanalyzer . | . . . . . . . . Garrison Access Hacks . | . . . . . . . . Unauthorized Hacks 9 | . 5 . 4 . . . . Terminals 7 | . 4 . 3 . . . . Track 1 | . 1 . . . . . . Botnet 4 | . 2 . 2 . . . . Operators 2 | . 1 . 1 . . . . Fabricators . | . . . . . . . . Repair Stations . | . . . . . . . . Recycling Units 2 | . 1 . 1 . . . . Recyclers 2 | . 1 . 1 . . . . Scanalyzers . | . . . . . . . . Garrison Access . | . . . . . . . . Data Cores Recovered . | . . . . . . . . Used . | . . . . . . . . Hacking Detections 8 | . 5 . 3 . . . . Full Trace Events . | . . . . . . . . Feedback Events . | . . . . . . . . Feedback Blocked . | . . . . . . . . Robot Schematics Acquired . | . . . . . . . . Robots Built . | . . . . . . . . Authchips . | . . . . . . . . Time . | . . . . . . . . Total Robot Build Rating . | . . . . . . . . Part Schematics Acquired . | . . . . . . . . Parts Built . | . . . . . . . . Authchips . | . . . . . . . . Time . | . . . . . . . . Total Part Build Rating . | . . . . . . . . Parts Repaired . | . . . . . . . . Time . | . . . . . . . . Parts Recycled . | . . . . . . . . Recycled Matter . | . . . . . . . . Retrieved Matter . | . . . . . . . . Retrieved Components . | . . . . . . . . Parts Scanalyzed . | . . . . . . . . Part Schematics Acquired . | . . . . . . . . Parts Damaged . | . . . . . . . . Bothacking | -11 -10 -10 -9 -9 -9 -8 -8 ------------ Run | Scr Mat Min Mat Min Exi Min Mat Used RIF Installer . | . . . . . . . . Robots Hacked . | . . . . . . . . Non-combat . | . . . . . . . . Combat . | . . . . . . . . Robot Hacks Applied . | . . . . . . . . Relay Couplers Released . | . . . . . . . . Fabnet Peak Effective % . | . . . . . . . . Robots Rewired . | . . . . . . . . Allies Hacked . | . . . . . . . . Hacks Repelled . | . . . . . . . . Allies | -11 -10 -10 -9 -9 -9 -8 -8 -------- Run | Scr Mat Min Mat Min Exi Min Mat Total Allies . | . . . . . . . . Largest Group . | . . . . . . . . Highest-Rated Group . | . . . . . . . . Highest-Rated Ally . | . . . . . . . . Total Orders . | . . . . . . . . Ally Attacks . | . . . . . . . . Total Damage . | . . . . . . . . Kills . | . . . . . . . . Allies Corrupted . | . . . . . . . . Allies Melted . | . . . . . . . . Intel | -11 -10 -10 -9 -9 -9 -8 -8 ------- Run | Scr Mat Min Mat Min Exi Min Mat Robot Analysis Total 4 | . 4 . . . . . . Derelict Logs Recovered 3 | . . . . 3 . . . Drone Launches . | . . . . . . . . Drone Recoveries . | . . . . . . . . Exploration | -11 -10 -10 -9 -9 -9 -8 -8 ------------- Run | Scr Mat Min Mat Min Exi Min Mat Turns Passed 2079 | 108 538 86 544 357 285 32 129 Spaces Moved 1326 | 52 321 72 289 244 236 26 86 Core 16 | 16 . . . . . . . Treads . | . . . . . . . . Legs 1310 | 36 321 72 289 244 236 26 86 Wheels . | . . . . . . . . Hover . | . . . . . . . . Flight . | . . . . . . . . Fastest Speed 50 | 50 120 120 120 120 120 120 120 Average Speed 119 | 98 120 120 120 120 120 120 120 Slowest Speed 190 | 120 120 120 190 120 120 120 120 Overloaded Moves . | . . . . . . . . Propulsion Burnouts . | . . . . . . . . Robots Hopped . | . . . . . . . . Cave-ins Triggered . | . . . . . . . . Exploration Rate (%) 34 | 4 65 17 35 62 66 19 5 Regions Visited 7 Branch Regions 4 Pre-discovered Areas 3 | . . . . 3 . . . Known Exits Taken . | . . . . . . . . Unknown Exits Taken 7 | 1 1 1 1 1 1 1 . Scrap Searched 2 | . . . . 2 . . . Spaces Dug 2 | . 1 . 1 . . . . Terrain Destroyed 2 | . 1 . 1 . . . . Melee . | . . . . . . . . Projectile 2 | . 1 . 1 . . . . AOE . | . . . . . . . . Terrain Rammed . | . . . . . . . . Walls Destroyed . | . . . . . . . . Machines Disabled . | . . . . . . . . Actions | -11 -10 -10 -9 -9 -9 -8 -8 --------- Run | Scr Mat Min Mat Min Exi Min Mat Total 1592 | 82 399 71 396 281 238 26 99 Wait 36 | 5 14 . 14 3 . . . Move 1319 | 51 320 71 288 243 235 25 86 Hop . | . . . . . . . . Pick Up 33 | 7 10 . 9 4 1 . 2 Fast Attach 10 | 4 . . 6 . . . . Attach 17 | 3 3 . 4 5 1 . 1 Detach 5 | . 3 . . 2 . . . Swap 28 | . 4 . 22 2 . . . Drop 30 | . 6 . 13 7 1 . 3 Fire 113 | 12 39 . 40 15 . . 7 Melee . | . . . . . . . . Ram . | . . . . . . . . Kick 1 | . . . . . . 1 . Crush . | . . . . . . . . Escape Stasis . | . . . . . . . . Rewire . | . . . . . . . . Trap . | . . . . . . . . Miscellaneous . | . . . . . . . . Route ------- -11/Scrapyard -10/Materials (discovered 3 exits: *Mat x2 / [*Min]) -10/Mines -9/Materials (discovered 2 exits: [*Mat] / [*Min]) -9/Mines -9/Exiles -8/Mines -8/Materials History --------- Turn | Location | Event 11 | -11/Scrapyard | Discovered new exit (range 15) 109 | -11/Scrapyard | Entered Materials 320 | -10/Materials | Build established: Mutant 330 | -10/Materials | Discovered new exit (range 6) 414 | -10/Materials | Central database locked down 453 | -10/Materials | Discovered new exit (range 12) 531 | -10/Materials | Discovered new exit (range 15) 647 | -10/Materials | Entered Mines 652 | -10/Mines | Discovered new exit (range 12) 733 | -10/Mines | Entered Materials 733 | -9/Materials | Evolved 2 slots: Propulsion x1, Utility x1 913 | -9/Materials | Discovered new exit (range 13) 1255 | -9/Materials | Destroyed 7 combat bots 1268 | -9/Materials | Discovered new exit (range 5) 1277 | -9/Materials | Entered Mines 1333 | -9/Mines | Learned location of Storage (-8) 1477 | -9/Mines | Assembled infested the area 1482 | -9/Mines | Assisted by a Guerilla fighting off Assembled 1538 | -9/Mines | Build established: Scavenger-Mutant 1617 | -9/Mines | Learned Materials terminal intel 1620 | -9/Mines | Found a hidden stash of uninstalled traps 1629 | -9/Mines | Deemed a non-threat by the Exiles lab entrance 1629 | -9/Mines | Discovered new exit (range 5) 1634 | -9/Mines | Entered Exiles 1664 | -9/Exiles | Met 8R-AWN 1681 | -9/Exiles | Met EX-HEX 1753 | -9/Exiles | Met EX-BIN 1765 | -9/Exiles | Aligned with FarCom system 1766 | -9/Exiles | Given EX-Vault access code 1795 | -9/Exiles | Opened EX-Vault 1805 | -9/Exiles | Found Gui. Plasma Cannon 1830 | -9/Exiles | Warned to stay clear of 0b10 Research branches 1860 | -9/Exiles | Met EX-DEC 1909 | -9/Exiles | Discovered new exit (range 10) 1919 | -9/Exiles | Left Exiles lab with Gui. Plasma Cannon 1919 | -9/Exiles | Entered Mines 1945 | -8/Mines | Discovered new exit (range 7) 1951 | -8/Mines | Entered Materials 1951 | -8/Materials | Evolved 2 slots: Propulsion x1, Utility x1 1952 | -8/Materials | Loaded intel: 12 terminal locations 2080 | -8/Materials | Self-destructed Last Messages --------------- LOCATION=UNKNOWN GOAL=ESCAPE 01951_ Receiving FarCom transmissions... Loading Materials terminal intel (x12)... 01952_ T-07 Excavator is excavating. 01984_ Dropped Mining Laser. 01989_ Acquired Missile Launcher. 01995_ Penetrated by Slug. 01998_ Slug penetrates Wall. 02001_ Penetrated by Slug. 02007_ Aluminum Leg destroyed. 02010_ Penetrated by Slug. 02014_ H-55 Commando destroyed. 02017_ Dropped Cld. Ion Engine. 02017_ Dropped Imp. Assault Rifle. 02019_ Acquired Cld. Ion Engine. 02021_ Acquired 48 matter. 02053_ W-25 Informer sends out distress signal. 02074_ O-24 Administrator: "IFF HANDSHAKE FAILED. SECURING TERMINAL." 02079_ O-24 Administrator sends out distress signal. Map ----- +----------------------------------------------------+ | ??##?## ##???????? | | #????## #????????? | | ??#?#?# ##?#?????? | | #?########/######+####?#?#????? | | ####[ # ? ?? ??#??#???? | | #### """ #? ? ????#?#????? | | ##?# """ # ? ? ? ?#???#???? | | #??# """ # ? ###?????? | | ##?# | # ?? ? #???????? | | #??#] """ # ? ? ? ##??????? | | ???#]] """ #? ? ? ###?????? | | #??#]] """ # ? ? ???#????? | | #?## ###?##?##?##??????? | | #?####"##+#### ? ? ?????? | | ??####[ ###?# ?? ? ????? | | ?##### #?#?# ??? ?? ? ????? | | ####?# #??#? ??? ? ??????? | | ###??# ###?? ? ? ???????? | | ######### ##???? ??? ?????? | | # """ ##w####??#?###+????????? | | # """ # ######### ? ???????? | | # """ + Y ???? | | # # ######+##+#????????? | | # ## ###?? ? ??????????? | | # ## ##?# ? ? ? ???????? | | ??####@## ##?? ?? ??????????? | | #???## ##??? ? ??????????? | | #?##?# #??????? ? ?#??????? | | ?#?#?# ####? ?????? ???????? | | ?#??#####/#?#??????????#??????? | | ##?? ?? ?o ?#??? ? ??????????? | | ????""""?? Y ?????????????????? | | ??# ""T"?? ##???#????????????? | | #???? ???? #?????????????????? | | ???????#??#?#?????????????????? | | ???##? ???????????????????????? | | ?????? ????#????????? ????????? | | #?????????????????????????????? | | ???????? ???#?????????????????? | | ???#?? ???????????#???????????? | | ???????????#??????????????????? | | ???#??????????????????????????? | | ??????????????????????????????? | | ????????????????????????????T?? | | ??????????????????????????????? | | ??????????????????????????????? | | ??????????????????????????????? | | ??????????????????????????????? | | ??????????????????????????????? | | | +----------------------------------------------------+ Best States ------------- Heat Dissipation 50 Energy Generation 14 Energy Capacity 280 Matter Stores 300 Matter Capacity 300 Sight Range 18 Terrain Scan Range 16 Terrain Scan Density 85 ECM Strength 1 Armor Coverage 150 Evasion (%) 55 Item Schematics ----------------- None Robot Schematics ------------------ None Fabricated ------------ Nothing Alien Tech Used ----------------- None Achievements -------------- None Challenges ------------ None Game ------ Seed AlloyIonicCapacitor Manual? 0 Play Time 00:27:23 Cumulative 586.3 hours Start 2022.04.10 @ 02:01:46 End 2022.04.10 @ 02:27:41 Sessions 1 Manual Loads 0 Difficulty Rogue Special Mode None Game No. 290 Rogue 163 Adventurer 125 Explorer 2 Win Type - Total 55 Types 47/3/2/1/1/0/0/0/1 Lore% 73 Gallery% 85 Achievement% 68 Wizard Run 0 Options --------- ASCII 0 Keyboard 1 Movement Numpad Keybinds 0 Fullscreen 1 Font 36/TerminusFine Map View 76x50 Tactical HUD 1 Map Filters NONE Filters NONE Steam 1 RUN: c9efbe6a-c0ea-4852-baf2-57756533271f